bitfinex/quotes_BTCUSD_20220202
["timestamp","ask_amount","ask_price","bid_price","bid_amount"]
[1643830794786,0.00678568,37610.0,37608.0,0.116488]
[1643830794986,0.00678568,37610.0,37608.0,0.20787844]
[1643830795192,0.00678568,37610.0,37609.0,0.739911]
[1643830796587,0.00678568,37610.0,37609.0,0.289911]
[1643830796788,0.00678568,37610.0,37608.0,0.27436044]
[1643830799441,0.00678568,37610.0,37609.0,0.839912]
[1643830799842,0.00678568,37610.0,37609.0,1.15360465]
[1643830800448,0.1,37612.0,37611.0,0.066469]
[1643830800449,0.05,37612.0,37611.0,0.066469]
[1643830800643,0.0006608,37620.0,37611.0,0.066469]
[1643830800644,0.0006608,37620.0,37612.0,1.666464]
[1643830800848,0.33756493,37624.0,37613.0,0.389871]
[1643830801144,0.00066083,37620.0,37614.0,0.343059]
[1643830801346,0.00264277,37627.0,37616.0,1.6]
[1643830801596,0.00264277,37627.0,37620.0,0.066444]
[1643830801895,0.00264277,37627.0,37621.0,0.66369184]
[1643830802099,0.001,37630.0,37623.0,1.6]
[1643830802296,0.001,37630.0,37624.0,0.442968]
[1643830802497,0.001,37630.0,37629.0,0.07516385]
[1643830802694,0.001,37630.0,37629.0,0.43133285]
[1643830802894,0.001,37630.0,37629.0,0.48133285]
[1643830803298,0.001,37630.0,37629.0,0.19160885]
[1643830803497,0.001,37630.0,37629.0,0.48133285]
[1643830803797,0.001,37630.0,37629.0,0.64093285]
[1643830803996,0.001,37630.0,37629.0,1.84093285]
[1643830804596,0.00237975,37631.0,37629.0,1.84093285]
[1643830804798,0.05047975,37632.0,37630.0,1.606147]
[1643830804996,0.05047975,37632.0,37631.0,1.049306]
[1643830805196,0.05047975,37632.0,37631.0,0.399306]
[1643830806049,0.00047975,37632.0,37631.0,0.749306]
[1643830806949,0.00047975,37632.0,37631.0,1.149306]
[1643830807149,0.00047975,37632.0,37631.0,0.749306]
[1643830807554,0.20089012,37638.0,37633.0,0.066434]
[1643830807555,0.00121,37638.0,37633.0,0.066434]
[1643830807753,0.00121,37638.0,37635.0,2.345]
[1643830808051,0.00121,37638.0,37635.0,2.744267]
[1643830808255,0.00121,37638.0,37635.0,2.844267]
[1643830808451,0.00121,37638.0,37635.0,3.52637435]
[1643830808654,0.05121,37638.0,37635.0,3.52637435]
[1643830809111,0.05121,37638.0,37635.0,5.8637304]
[1643830809513,0.00166092,37637.0,37635.0,5.8637304]
[1643830809720,0.00584327,37643.0,37638.0,1.6]
[1643830809916,0.44466153,37648.0,37642.0,0.745]
[1643830809917,0.01581,37644.0,37642.0,0.745]
[1643830810116,0.01581,37644.0,37643.0,2.694193]
[1643830810317,0.01581,37646.0,37643.0,1.244193]
[1643830810516,0.0122,37649.0,37645.0,1.6]
[1643830810828,0.01208,37649.0,37648.0,0.24680198]
[1643830811013,0.01208,37649.0,37648.0,0.59594698]
[1643830811215,0.01202,37649.0,37648.0,0.59594698]
[1643830811416,0.01196,37649.0,37648.0,0.59594698]
[1643830811615,0.00696,37649.0,37648.0,0.64594698]
[1643830811816,0.0069,37649.0,37648.0,0.64594698]
[1643830812016,0.0069,37649.0,37648.0,0.399145]
[1643830812216,0.00684,37649.0,37647.0,0.08776453]
[1643830812417,0.00684,37649.0,37646.0,0.03732131]
[1643830812615,0.00684,37649.0,37646.0,0.03632967]
[1643830812860,0.02136153,37648.0,37646.0,0.03632967]
[1643830813962,0.02136153,37648.0,37646.0,0.21913567]
[1643830814963,0.02136153,37648.0,37647.0,0.289553]
[1643830815764,0.0022,37652.0,37648.0,1.6]
[1643830815765,0.0016,37652.0,37648.0,1.6]
[1643830815969,0.0016,37652.0,37649.0,0.94411926]
[1643830816164,0.0016,37652.0,37650.0,0.289526]
[1643830816363,0.0016,37652.0,37650.0,0.399126]
[1643830816591,0.0016,37652.0,37651.0,0.289517]
[1643830821230,0.04994,37653.0,37650.0,0.05]
[1643830821425,0.06641771,37652.0,37650.0,0.05]
[1643830821624,0.06635771,37652.0,37650.0,0.05]
[1643830821826,0.06629771,37652.0,37650.0,0.05]
[1643830822028,1.112867,37651.0,37650.0,0.05]
[1643830822227,1.112807,37651.0,37650.0,0.05]
[1643830822425,1.112747,37651.0,37650.0,0.05]
[1643830822625,0.412687,37651.0,37650.0,0.05]
[1643830822827,0.05954,37651.0,37650.0,0.05]
[1643830823028,0.05948,37651.0,37650.0,0.05]
[1643830823226,0.05942,37651.0,37650.0,0.05]
[1643830823426,0.06683908,37652.0,37650.0,0.05]
[1643830823626,0.06611771,37652.0,37650.0,0.05]
[1643830824075,0.06099771,37652.0,37650.0,0.05]
[1643830824480,0.06093771,37652.0,37650.0,0.05]
[1643830825578,0.45,37651.0,37650.0,0.05]
[1643830825779,0.5,37651.0,37650.0,0.05]
[1643830826384,0.0532,37653.0,37650.0,0.05]
[1643830826780,0.23785995,37652.0,37650.0,0.05]
[1643830826981,0.0532,37651.0,37650.0,0.05]
[1643830827831,0.06641771,37652.0,37650.0,0.05]
[1643830827832,0.06141771,37652.0,37650.0,0.05]
[1643830828432,0.05,37653.0,37650.0,0.05]
[1643830828635,0.05066114,37653.0,37650.0,0.05]
[1643830828834,0.00066114,37653.0,37650.0,0.05]
[1643830829633,0.12822018,37655.0,37650.0,0.05]
[1643830830033,0.00066113,37653.0,37650.0,0.05]
[1643830830833,0.17822018,37655.0,37650.0,0.05]
[1643830831033,0.00066113,37653.0,37650.0,0.05]
[1643830831441,0.00066113,37653.0,37651.0,0.289764]
[1643830831682,0.00066113,37653.0,37651.0,0.339764]
[1643830831876,0.00066113,37653.0,37652.0,0.839755]
[1643830832080,0.06181113,37655.0,37652.0,0.289755]
[1643830832277,0.06181113,37655.0,37652.0,0.066398]
[1643830832278,0.00066113,37654.0,37652.0,0.066398]
[1643830832481,0.24532699,37654.0,37651.0,0.132794]
[1643830832679,1.353268,37653.0,37648.0,0.01895961]
[1643830832878,0.353268,37652.0,37648.0,0.01759161]
[1643830833478,0.353268,37652.0,37648.0,0.06759161]
[1643830833479,0.35392914,37652.0,37648.0,0.06759161]
[1643830833777,0.60368197,37651.0,37648.0,0.05]
[1643830833977,0.353268,37650.0,37648.0,0.05]
[1643830834280,0.05,37650.0,37648.0,0.05]
[1643830834680,0.05066115,37651.0,37648.0,0.05]
[1643830834878,0.00066115,37651.0,37648.0,0.05]
[1643830835728,0.30452731,37652.0,37648.0,0.05]
[1643830835729,0.35452731,37652.0,37648.0,0.05]
[1643830835929,0.00066115,37651.0,37649.0,0.066408]
[1643830836935,0.35452731,37652.0,37649.0,0.066408]
[1643830837132,0.35518845,37652.0,37649.0,0.066408]
[1643830837733,0.35518845,37652.0,37648.0,0.05]
[1643830838134,0.35452731,37652.0,37648.0,0.05]
[1643830838333,0.35518845,37652.0,37648.0,0.05]
[1643830838935,0.58464001,37652.0,37648.0,0.05]
[1643830839184,0.58397887,37652.0,37648.0,0.05]
[1643830839382,0.05,37652.0,37648.0,0.05]
[1643830839593,0.05066114,37652.0,37648.0,0.05]
[1643830840482,0.27221335,37651.0,37648.0,0.05]
[1643830840883,0.353268,37650.0,37648.0,0.05]
[1643830841183,0.403268,37650.0,37648.0,0.05]
[1643830841383,0.05,37650.0,37648.0,0.05]
[1643830841783,0.32221335,37651.0,37648.0,0.05]
[1643830841983,0.38929122,37651.0,37648.0,0.05]
[1643830842288,0.00066115,37651.0,37648.0,0.116412]
[1643830842483,0.05066115,37651.0,37648.0,0.166412]
[1643830842682,0.00066115,37651.0,37649.0,0.08469534]
[1643830842935,0.27523059,37654.0,37649.0,0.08469534]
[1643830842936,0.05,37654.0,37649.0,0.08469534]
[1643830843137,0.35773415,37657.0,37649.0,0.08469534]
[1643830843138,0.00043611,37651.0,37649.0,0.08469534]
[1643830843533,0.06184731,37653.0,37649.0,0.08469534]
[1643830843735,0.06184731,37653.0,37648.0,0.05]
[1643830843935,0.353268,37652.0,37648.0,0.05]
[1643830844136,0.05,37652.0,37648.0,0.05]
[1643830844337,0.353268,37651.0,37648.0,0.05]
[1643830844537,0.403268,37652.0,37648.0,0.05]
[1643830844738,0.353268,37651.0,37648.0,0.05]
[1643830844938,0.05,37652.0,37648.0,0.05]
[1643830845336,0.353268,37651.0,37648.0,0.05]
[1643830845536,0.348268,37651.0,37648.0,0.05]
[1643830846035,0.338268,37651.0,37648.0,0.05]
[1643830846437,0.24944933,37649.0,37648.0,0.05]
[1643830846879,0.29944933,37649.0,37648.0,0.05]
[1643830847089,0.65272133,37649.0,37648.0,0.05]
[1643830847279,0.74772133,37649.0,37648.0,0.05]
[1643830847485,1.89772133,37649.0,37648.0,0.05]
[1643830847683,2.34385227,37649.0,37648.0,0.05]
[1643830847978,2.34385227,37649.0,37647.0,0.00066115]
[1643830847979,1.08495349,37648.0,37647.0,0.00066115]
[1643830848179,1.92899503,37648.0,37647.0,0.00066115]
[1643830848377,1.59142549,37648.0,37647.0,0.00066115]
[1643830848581,1.92904574,37648.0,37647.0,0.00066115]
[1643830848777,1.59142549,37648.0,37647.0,0.00066115]
[1643830848978,1.59142549,37648.0,37646.0,0.05022533]
[1643830849180,1.39089015,37647.0,37646.0,0.05022533]
[1643830849377,1.49409015,37647.0,37646.0,0.05022533]
[1643830849578,1.59409015,37647.0,37646.0,0.05022533]
[1643830849982,1.59409015,37647.0,37646.0,0.05]
[1643830850633,1.58909015,37647.0,37646.0,0.05]
[1643830851235,1.251472,37647.0,37646.0,0.05]
[1643830851440,0.10319448,37644.0,37642.0,0.01866592]
[1643830851635,2.58579804,37643.0,37641.0,0.02195882]
[1643830851833,2.19731121,37642.0,37641.0,0.02195882]
[1643830852032,2.25051121,37642.0,37641.0,0.02195882]
[1643830852234,2.30051121,37642.0,37641.0,0.02195882]
[1643830852435,2.98248032,37642.0,37641.0,0.02195882]
[1643830852637,0.8,37641.0,37635.0,0.06014556]
[1643830852833,0.63941328,37636.0,37635.0,0.06014556]
[1643830853036,0.456472,37636.0,37635.0,0.06014556]
[1643830853434,0.68722286,37636.0,37635.0,0.06014556]
[1643830854992,0.456472,37636.0,37635.0,0.06014556]
[1643830855491,0.451472,37636.0,37635.0,0.06014556]
[1643830855896,0.05332621,37636.0,37635.0,0.06014556]
[1643830856095,0.00012621,37636.0,37635.0,0.06014556]
[1643830856295,0.00012621,37636.0,37635.0,1.16014556]
[1643830856693,0.00012621,37636.0,37635.0,1.21014556]
[1643830856892,0.00012621,37636.0,37635.0,1.79574359]
[1643830857293,0.00012621,37636.0,37635.0,0.39082359]
[1643830858343,0.00012621,37636.0,37635.0,0.99082359]
[1643830858939,0.04512621,37638.0,37636.0,0.3]
[1643830859540,0.00487379,37640.0,37636.0,0.3]
[1643830859741,0.00487379,37640.0,37639.0,0.08960044]
[1643830859942,0.00487379,37640.0,37639.0,0.07960044]
[1643830860342,0.00487379,37640.0,37639.0,0.47960044]
[1643830860543,0.04512621,37642.0,37639.0,0.54602644]
[1643830860742,0.04512621,37642.0,37639.0,0.14602644]
[1643830860942,0.04012621,37642.0,37639.0,0.14602644]
[1643830861589,0.04012621,37642.0,37641.0,0.31829776]
[1643830862690,0.04012621,37642.0,37639.0,0.14602644]
[1643830862889,0.04012621,37642.0,37639.0,0.0659529]
[1643830863094,0.353272,37641.0,37638.0,0.05066061]
[1643830863291,0.353272,37641.0,37638.0,0.05]
[1643830863492,0.353272,37641.0,37638.0,0.0506606]
[1643830863689,0.403272,37641.0,37638.0,0.0506606]
[1643830863991,0.353272,37640.0,37638.0,0.0506606]
[1643830864189,0.30611598,37641.0,37638.0,0.0506606]
[1643830864489,0.353272,37640.0,37638.0,0.05]
[1643830864688,0.30611598,37641.0,37638.0,0.0506606]
[1643830865089,0.30611598,37641.0,37638.0,0.1170926]
[1643830865339,0.05,37641.0,37638.0,0.1170926]
[1643830865746,0.00011654,37641.0,37638.0,0.116432]
[1643830865939,0.00011654,37641.0,37638.0,0.1170926]
[1643830866141,0.1526381,37647.0,37639.0,0.35]
[1643830866344,0.33772982,37649.0,37641.0,0.066423]
[1643830866541,0.35887056,37650.0,37647.0,0.07492329]
[1643830866742,0.65646411,37649.0,37647.0,0.07492329]
[1643830866944,0.35821018,37650.0,37647.0,0.07492329]
[1643830867146,0.35821018,37650.0,37647.0,0.12492329]
[1643830867147,0.02114084,37650.0,37647.0,0.12492329]
[1643830867742,0.00066048,37650.0,37647.0,0.12492329]
[1643830867944,0.00066048,37650.0,37648.0,0.27259377]
[1643830868144,0.05,37651.0,37648.0,0.33900077]
[1643830868348,0.00066048,37650.0,37648.0,0.33900077]
[1643830868543,0.00066048,37650.0,37648.0,0.38900077]
[1643830869093,0.00066048,37650.0,37649.0,1.84111382]
[1643830869300,0.05,37651.0,37649.0,2.24589782]
[1643830869501,0.05065615,37651.0,37650.0,1.604773]
[1643830869896,0.05065615,37651.0,37650.0,1.704773]
[1643830870493,0.01181113,37655.0,37650.0,1.704773]
[1643830870694,0.01181113,37655.0,37651.0,0.732798]
[1643830870695,0.00065614,37652.0,37651.0,0.732798]
[1643830870900,0.00065614,37652.0,37651.0,0.132798]
[1643830871095,0.00065614,37652.0,37648.0,0.1]
[1643830871697,0.05,37653.0,37648.0,0.1]
[1643830871896,0.00065614,37652.0,37648.0,0.1]
[1643830872096,0.00065614,37652.0,37648.0,0.05]
[1643830872498,0.353272,37651.0,37648.0,0.05]
[1643830872697,0.55,37649.0,37640.0,0.14597811]
[1643830872931,0.0532,37648.0,37641.0,0.25820799]
[1643830873130,0.11642169,37649.0,37641.0,0.25820799]
[1643830873332,0.05,37648.0,37641.0,0.25820799]
[1643830873631,0.05,37648.0,37643.0,0.05]
[1643830874229,0.05,37648.0,37644.0,0.09954195]
[1643830875234,0.05,37649.0,37647.0,0.3072528]
[1643830875436,0.00043532,37650.0,37647.0,0.3572528]
[1643830876433,0.01181113,37655.0,37648.0,0.066404]
[1643830876434,0.05,37651.0,37648.0,0.066404]
[1643830876696,0.00065905,37650.0,37648.0,0.199209]
[1643830877697,0.05,37651.0,37649.0,1.154784]
[1643830877897,0.05065905,37651.0,37650.0,0.704773]
[1643830878296,0.04065905,37651.0,37650.0,0.39812894]
[1643830878696,0.00065905,37651.0,37650.0,0.09335594]
[1643830878900,0.01181113,37655.0,37651.0,0.066401]
[1643830879099,0.01181113,37655.0,37651.0,0.132802]
[1643830879100,0.00065904,37652.0,37651.0,0.132802]
[1643830880098,0.05,37654.0,37651.0,0.132802]
[1643830880331,0.00065904,37653.0,37651.0,0.132802]
[1643830880834,0.00065904,37653.0,37651.0,0.065033]
[1643830881233,0.04565904,37654.0,37653.0,0.24960735]
[1643830881439,0.00065903,37654.0,37653.0,0.24960735]
[1643830881933,0.00065903,37654.0,37650.0,0.09335594]
[1643830882235,0.06706812,37654.0,37650.0,0.09335594]
[1643830882532,0.06640909,37654.0,37650.0,0.09335594]
[1643830882734,0.06640909,37654.0,37650.0,0.15976094]
[1643830882934,0.06640909,37654.0,37651.0,0.29976478]
[1643830883942,0.06740909,37654.0,37651.0,0.29976478]
[1643830886289,0.22801528,37654.0,37651.0,0.29976478]
[1643830886498,0.2259985,37654.0,37649.0,0.05]
[1643830886694,0.2019191,37652.0,37649.0,0.05]
[1643830887296,0.403272,37651.0,37649.0,0.05]
[1643830887494,0.353272,37650.0,37649.0,0.05]
[1643830887931,0.05,37650.0,37649.0,0.05]
[1643830888332,0.37329501,37651.0,37649.0,0.05]
[1643830888732,0.05,37651.0,37648.0,0.00022454]
[1643830889139,0.19927215,37651.0,37648.0,0.00022454]
[1643830889336,0.2519191,37652.0,37648.0,0.00022454]
[1643830889337,0.05,37652.0,37648.0,0.00022454]
[1643830889837,0.20747017,37655.0,37648.0,0.00065944]
[1643830890137,0.20812949,37655.0,37650.0,0.07367831]
[1643830890335,0.48571106,37655.0,37650.0,0.07367831]
[1643830890535,0.20812949,37655.0,37650.0,0.07367831]
[1643830890737,0.05812949,37655.0,37650.0,0.07367831]
[1643830890936,0.05747017,37655.0,37650.0,0.07367831]
[1643830891137,0.05812952,37655.0,37651.0,0.066404]
[1643830892183,0.05747017,37655.0,37651.0,0.066404]
[1643830892384,0.05812952,37655.0,37651.0,0.066404]
[1643830892583,0.05812952,37655.0,37651.0,0.116404]
[1643830893184,0.05812952,37655.0,37654.0,0.28703782]
[1643830893386,0.05790535,37655.0,37651.0,0.38756917]
[1643830893587,0.01224631,37655.0,37651.0,0.38756917]
[1643830893786,0.02718861,37657.0,37652.0,1.0]
[1643830893990,0.02718861,37657.0,37651.0,0.116404]
[1643830894186,0.02718861,37657.0,37651.0,0.39073092]
[1643830894389,0.06850669,37657.0,37651.0,0.39073092]
[1643830894585,0.06850669,37657.0,37651.0,0.71410233]
[1643830895632,0.06850669,37657.0,37651.0,0.48977541]
[1643830897438,0.06850669,37657.0,37652.0,0.22877749]
[1643830897736,0.06350669,37657.0,37651.0,0.48977541]
[1643830898137,0.06350669,37657.0,37651.0,0.43977541]
[1643830898337,0.06416631,37657.0,37651.0,0.43977541]
[1643830898538,0.06416631,37657.0,37651.0,0.116404]
[1643830899402,0.353272,37656.0,37651.0,0.116404]
[1643830899610,0.05,37656.0,37651.0,0.116404]
[1643830899814,0.06416631,37657.0,37651.0,0.116404]
[1643830900204,0.06049837,37657.0,37651.0,0.116404]
[1643830900604,0.05983875,37657.0,37651.0,0.116404]
[1643830900806,0.06049837,37657.0,37651.0,0.166404]
[1643830901205,0.06049837,37657.0,37651.0,0.161404]
[1643830901603,0.05983875,37657.0,37651.0,0.161404]
[1643830903143,0.06640676,37656.0,37651.0,0.111404]
[1643830903344,0.353272,37655.0,37651.0,0.05]
[1643830903544,0.11049802,37657.0,37651.0,0.05]
[1643830904145,0.10983875,37657.0,37651.0,0.05]
[1643830904345,0.11049802,37657.0,37651.0,0.05]
[1643830905250,0.10983875,37657.0,37651.0,0.05]
[1643830905645,0.11049802,37657.0,37651.0,0.05]
[1643830906445,0.10983875,37657.0,37651.0,0.05]
[1643830906692,0.11049802,37657.0,37651.0,0.05]
[1643830906894,0.06640612,37656.0,37651.0,0.05]
[1643830907693,0.353272,37655.0,37651.0,0.05]
[1643830907893,0.05,37655.0,37651.0,0.05]
[1643830908094,0.06640612,37656.0,37651.0,0.05]
[1643830908295,0.11049801,37657.0,37651.0,0.116401]
[1643830908493,0.353272,37656.0,37651.0,0.116401]
[1643830908696,0.44822783,37657.0,37651.0,0.116401]
[1643830908893,0.44756857,37657.0,37651.0,0.116401]
[1643830909292,0.44822783,37657.0,37651.0,0.116401]
[1643830909697,0.10749592,37657.0,37651.0,0.116401]
[1643830909894,0.51163158,37657.0,37651.0,0.116401]
[1643830910098,0.51097232,37657.0,37651.0,0.116401]
[1643830910534,0.51163159,37657.0,37651.0,0.116401]
[1643830910934,0.33772982,37656.0,37651.0,0.116401]
[1643830911535,0.33772982,37656.0,37651.0,0.05]
[1643830912335,0.33772982,37656.0,37651.0,0.34020012]
[1643830912835,0.33772982,37656.0,37651.0,0.05]
[1643830914086,0.1732425,37657.0,37651.0,0.05]
[1643830914087,0.33772982,37655.0,37651.0,0.05]
[1643830914289,0.62760719,37655.0,37651.0,0.05]
[1643830914486,0.353272,37654.0,37651.0,0.05]
[1643830915486,0.40968158,37654.0,37651.0,0.05]
[1643830915686,0.05640958,37654.0,37651.0,0.05]
[1643830916894,0.353272,37653.0,37651.0,0.05]
[1643830917092,0.06641524,37651.0,37646.0,0.18281]
[1643830917938,0.23310941,37649.0,37646.0,0.18281]
[1643830918139,0.29952431,37649.0,37646.0,0.18281]
[1643830919134,0.0664149,37649.0,37646.0,0.18281]
[1643830919337,0.06641154,37651.0,37646.0,0.18281]
[1643830919736,0.00434096,37650.0,37646.0,0.18281]
[1643830919937,0.00434096,37650.0,37647.0,0.00065866]
[1643830920141,0.00104096,37650.0,37647.0,0.00065866]
[1643830920541,0.25161002,37649.0,37647.0,0.00065866]
[1643830920736,0.11537058,37651.0,37647.0,0.00065866]
[1643830920936,0.11537058,37651.0,37646.0,0.13281]
[1643830921136,0.11537058,37651.0,37646.0,0.13346866]
[1643830921694,0.04895904,37651.0,37647.0,0.3048]
[1643830921892,0.04895904,37651.0,37646.0,0.24988066]
[1643830922093,0.04895904,37651.0,37646.0,0.249222]
[1643830922293,0.04895904,37651.0,37647.0,0.30545865]
[1643830922494,0.04895904,37651.0,37647.0,0.00065865]
[1643830922894,0.1153708,37651.0,37647.0,0.00065865]
[1643830923393,0.1153708,37651.0,37646.0,0.13281]
[1643830923593,0.1153708,37651.0,37647.0,0.00065865]
[1643830924595,0.1153708,37651.0,37646.0,0.13281]
[1643830924793,0.1153708,37651.0,37647.0,0.00065865]
[1643830925651,0.1153708,37651.0,37647.0,0.24136558]
[1643830925854,0.1153708,37651.0,37648.0,0.304791]
[1643830926052,0.04895904,37651.0,37648.0,0.371196]
[1643830926252,0.04895904,37651.0,37649.0,0.304782]
[1643830926550,0.00104096,37653.0,37651.0,0.28753455]
[1643830926754,0.00104096,37653.0,37652.0,1.154754]
[1643830926951,0.00104096,37653.0,37652.0,0.304754]
[1643830927451,0.00065857,37654.0,37652.0,0.304754]
[1643830927651,0.00065857,37654.0,37651.0,0.28753455]
[1643830928051,0.00065857,37654.0,37651.0,0.35393655]
[1643830928252,0.04895904,37655.0,37651.0,0.35393655]
[1643830928461,0.00065857,37654.0,37652.0,0.066403]
[1643830929299,0.04895904,37655.0,37652.0,0.066403]
[1643830929799,0.0496176,37655.0,37652.0,0.066403]
[1643830930395,0.0495576,37655.0,37652.0,0.066403]
[1643830930596,0.04889904,37655.0,37652.0,0.066403]
[1643830930896,0.0495576,37655.0,37652.0,0.066403]
[1643830931795,0.04889904,37655.0,37652.0,0.066403]
[1643830931998,0.0495576,37655.0,37652.0,0.066403]
[1643830933045,0.406472,37654.0,37651.0,0.05]
[1643830933245,0.453272,37653.0,37651.0,0.05]
[1643830933442,1.206472,37652.0,37651.0,0.05]
[1643830933647,1.60048975,37652.0,37651.0,0.05]
[1643830933948,1.60048975,37652.0,37648.0,0.00065869]
[1643830933949,1.21643,37651.0,37648.0,0.00065869]
[1643830934143,1.21643,37651.0,37641.0,0.50705462]
[1643830934144,0.2485353,37642.0,37641.0,0.50705462]
[1643830934344,0.6550063,37642.0,37641.0,0.50705462]
[1643830935348,0.3017353,37642.0,37641.0,0.50705462]
[1643830935742,0.0532,37642.0,37641.0,0.50705462]
[1643830936792,0.46054913,37649.0,37641.0,0.50705462]
[1643830936793,0.33780054,37650.0,37641.0,1.05924321]
[1643830936991,0.65127027,37653.0,37644.0,0.066407]
[1643830937192,0.65127027,37653.0,37645.0,0.397907]
[1643830937394,0.31346973,37653.0,37646.0,0.344687]
[1643830937792,0.05,37652.0,37647.0,0.05]
[1643830937993,0.05,37652.0,37649.0,0.31609642]
[1643830938695,0.045,37652.0,37649.0,0.31609642]
[1643830939093,0.045,37652.0,37651.0,0.066404]
[1643830939492,0.045,37652.0,37651.0,0.29188472]
[1643830939695,0.05,37653.0,37651.0,0.29188472]
[1643830939895,0.07204191,37654.0,37652.0,0.57516961]
[1643830940096,0.00563706,37654.0,37653.0,1.18357657]
[1643830940352,0.005,37654.0,37653.0,0.58357657]
[1643830940551,0.00063708,37654.0,37652.0,0.10158422]
[1643830941153,0.00063708,37654.0,37653.0,0.21758141]
[1643830941360,0.045,37656.0,37653.0,0.66758141]
[1643830941654,0.00063708,37655.0,37653.0,0.5164]
[1643830941857,0.002,37659.0,37655.0,1.6]
[1643830942055,0.002,37659.0,37657.0,0.25816199]
[1643830942254,0.002,37659.0,37658.0,1.247761]
[1643830942656,0.002,37659.0,37658.0,1.69692483]
[1643830942858,0.00985024,37667.0,37659.0,1.6]
[1643830943155,0.05146024,37668.0,37660.0,2.22034844]
[1643830943355,0.05146024,37668.0,37662.0,0.066378]
[1643830943554,0.05146024,37668.0,37664.0,0.36014582]
[1643830943756,0.05,37667.0,37665.0,0.0532]
[1643830943959,0.045,37667.0,37665.0,0.0532]
[1643830944197,0.0011,37672.0,37668.0,1.35]
[1643830944198,0.0461,37672.0,37668.0,1.35]
[1643830944398,0.001,37674.0,37669.0,0.63750444]
[1643830944597,0.002,37675.0,37670.0,0.344428]
[1643830944802,0.002,37675.0,37671.0,0.29305844]
[1643830944996,0.0127583,37676.0,37674.0,0.32926749]
[1643830944997,0.0097583,37676.0,37674.0,0.32926749]
[1643830945201,0.0097583,37676.0,37675.0,0.44250797]
[1643830945393,0.03895075,37677.0,37675.0,1.83985844]
[1643830945596,0.03482727,37679.0,37677.0,1.6]
[1643830945794,0.03482727,37679.0,37678.0,0.5532]
[1643830945997,0.0011,37686.0,37680.0,0.066341]
[1643830946199,0.0011,37686.0,37679.0,1.15]
[1643830946200,0.24095844,37686.0,37681.0,0.0532]
[1643830946396,0.24820673,37682.0,37681.0,0.0532]
[1643830946793,0.24820673,37682.0,37677.0,0.01603925]
[1643830947194,0.29820673,37682.0,37677.0,0.01603925]
[1643830947598,0.59307544,37681.0,37678.0,0.05]
[1643830947853,0.353217,37680.0,37678.0,0.05]
[1643830948049,0.403217,37680.0,37678.0,0.05]
[1643830948249,1.303217,37679.0,37678.0,0.05]
[1643830948451,1.58108961,37679.0,37678.0,0.05]
[1643830948649,1.68108961,37679.0,37678.0,0.05]
[1643830948851,0.9,37678.0,37662.0,0.42]
[1643830949054,0.9,37678.0,37654.0,0.02147622]
[1643830949055,0.1,37673.0,37654.0,0.02147622]
[1643830949255,0.28367006,37672.0,37654.0,0.02147622]
[1643830949450,0.066397,37671.0,37654.0,0.02147622]
[1643830949652,0.0532,37670.0,37655.0,0.10946762]
[1643830949852,0.21847824,37665.0,37662.0,0.07641789]
[1643830950051,0.26847824,37665.0,37661.0,0.05]
[1643830950848,0.26841824,37665.0,37661.0,0.05]
[1643830951051,0.26835824,37665.0,37661.0,0.05]
[1643830951351,0.26895492,37665.0,37661.0,0.05]
[1643830951599,0.26889492,37665.0,37661.0,0.05]
[1643830951798,0.26883492,37665.0,37661.0,0.05]
[1643830951994,0.26877492,37665.0,37661.0,0.05]
[1643830952196,0.23463904,37664.0,37661.0,0.05]
[1643830952398,0.44194357,37663.0,37661.0,0.05]
[1643830952598,1.35661265,37662.0,37661.0,0.05]
[1643830952796,1.35649265,37662.0,37661.0,0.05]
[1643830952996,0.89586564,37662.0,37661.0,0.05]
[1643830953196,0.94586564,37662.0,37661.0,0.05]
[1643830953596,0.94580564,37662.0,37654.0,0.02147622]
[1643830953797,0.1,37661.0,37654.0,0.02147622]
[1643830953995,0.22382062,37660.0,37654.0,0.02147622]
[1643830954400,0.04994,37662.0,37654.0,0.2707195]
[1643830954596,0.04994,37662.0,37655.0,0.05]
[1643830954796,0.06640861,37660.0,37655.0,0.05]
[1643830954995,0.00065672,37659.0,37655.0,0.05]
[1643830955198,0.00065672,37659.0,37656.0,0.08519073]
[1643830955444,0.00065672,37659.0,37656.0,0.21796773]
[1643830955843,0.05,37660.0,37656.0,0.21796773]
[1643830956244,0.00065672,37659.0,37656.0,0.21796773]
[1643830956643,0.00065672,37659.0,37656.0,0.08519073]
[1643830957049,0.05,37660.0,37656.0,0.08519073]
[1643830957444,0.00065672,37659.0,37657.0,0.20966353]
[1643830957842,0.00065672,37659.0,37656.0,0.08519073]
[1643830958343,0.05,37660.0,37656.0,0.08519073]
[1643830958545,0.00064802,37659.0,37656.0,0.08519073]
[1643830958744,0.00064802,37659.0,37656.0,0.13519073]
[1643830959192,0.00064802,37659.0,37656.0,0.08519073]
[1643830959388,0.00064802,37659.0,37656.0,0.13519073]
[1643830959593,0.33063908,37660.0,37655.0,0.05]
[1643830959801,0.00064802,37659.0,37655.0,0.05]
[1643830960590,0.28501843,37656.0,37655.0,0.05]
[1643830960990,0.33501843,37656.0,37655.0,0.05]
[1643830961490,0.33501843,37656.0,37654.0,0.02086671]
[1643830961889,0.58169137,37655.0,37654.0,0.02086671]
[1643830962294,0.35,37655.0,37654.0,0.02086671]
[1643830962691,0.33501843,37656.0,37654.0,0.02086671]
[1643830962948,0.33501843,37656.0,37652.0,0.05]
[1643830963146,0.27091112,37653.0,37652.0,0.05]
[1643830963345,0.33501843,37656.0,37652.0,0.05]
[1643830963544,0.33501843,37656.0,37651.0,0.00062221]
[1643830964343,0.33501843,37656.0,37649.0,0.01949422]
[1643830964544,0.33501843,37656.0,37651.0,0.00062219]
[1643830964545,0.05,37655.0,37651.0,0.00062219]
[1643830964743,0.21835798,37653.0,37651.0,0.00062219]
[1643830965144,0.26835798,37653.0,37651.0,0.00062219]
[1643830965543,0.26835798,37653.0,37650.0,0.05]
[1643830965743,0.26835798,37653.0,37650.0,0.05062393]